bitfinex/quotes_SOLUSD_20250806
["timestamp","ask_amount","ask_price","bid_price","bid_amount"]
[1754495891548,9.71945078,169.63,169.58,26.0]
[1754495891745,9.71945078,169.63,169.6,9.75140133]
[1754495891970,9.71945078,169.63,169.55,26.0]
[1754495891971,19.47085211,169.63,169.55,26.0]
[1754495892182,20.17085211,169.63,169.57,9.75140133]
[1754495892392,9.75140133,169.6,169.58,5.8969218]
[1754495892550,10.45140133,169.59,169.54,26.0]
[1754495892889,0.7,169.58,169.48,49.26]
[1754495893092,9.75140133,169.56,169.54,26.0]
[1754495893451,10.45140133,169.55,169.48,49.26]
[1754495893675,9.75140133,169.54,169.49,9.75140133]
[1754495893973,9.75140133,169.55,169.52,26.0]
[1754495894355,10.45140133,169.55,169.5,31.89970501]
[1754495894749,0.7,169.58,169.5,56.40036887]
[1754495895171,9.75140133,169.55,169.5,46.64896754]
[1754495895579,0.7,169.55,169.5,31.89970501]
[1754495895794,10.45140133,169.55,169.5,41.65110701]
[1754495895985,9.75140133,169.55,169.51,3.78701558]
[1754495896164,9.75140133,169.55,169.5,51.40250834]
[1754495896165,9.75140133,169.55,169.52,3.78701558]
[1754495896490,9.75140133,169.53,169.5,5.89970501]
[1754495897370,9.75140133,169.53,169.49,5.9000531]
[1754495897972,0.7,169.52,169.48,17.728924]
[1754495898170,26.0,169.6,169.49,24.8576169]
[1754495898392,9.75140133,169.54,169.49,24.8576169]
[1754495898588,9.75140133,169.55,169.5,9.75140133]
[1754495898995,9.75140133,169.54,169.49,25.5676169]
[1754495899166,9.75140133,169.53,169.49,0.28432314]
[1754495899494,0.7,169.57,169.51,21.00522632]
[1754495899793,9.75140133,169.53,169.49,15.10621557]
[1754495900167,0.7,169.55,169.49,15.10621557]
[1754495900588,9.75140133,169.52,169.49,15.10621557]
[1754495900975,0.7,169.55,169.49,15.10621557]
[1754495901175,9.75140133,169.52,169.49,15.10621557]
[1754495901591,9.75140133,169.5,169.49,15.10621557]
[1754495901865,9.75140133,169.5,169.44,84.77140133]
[1754495901866,10.45140133,169.5,169.45,21.00735223]
[1754495902063,9.75140133,169.5,169.45,30.75875356]
[1754495902261,9.75140133,169.5,169.45,31.46875356]
[1754495903083,9.75140133,169.5,169.45,30.75875356]
[1754495903277,9.75140133,169.48,169.45,15.10621557]
[1754495903594,9.75140133,169.46,169.36,10.46140133]
[1754495903764,9.75140133,169.41,169.37,12.76300892]
[1754495903964,9.75140133,169.41,169.38,17.20318053]
[1754495904197,26.0,169.48,169.4,15.10621557]
[1754495904365,9.75140133,169.44,169.41,2.09696496]
[1754495904769,9.75140133,169.43,169.4,15.10621557]
[1754495905000,26.7,169.47,169.41,0.14216157]
[1754495905195,9.75140133,169.42,169.37,54.50397378]
[1754495905374,9.75140133,169.4,169.38,17.2026808]
[1754495905579,9.75140133,169.4,169.36,17.740457]
[1754495905580,9.75140133,169.4,169.36,21.01079752]
[1754495905786,10.45140133,169.41,169.38,15.10621557]
[1754495905973,0.7,169.43,169.4,15.10621557]
[1754495906178,9.75140133,169.41,169.4,15.10621557]
[1754495906389,9.75140133,169.42,169.37,24.8576169]
[1754495906595,9.75140133,169.42,169.39,0.28432314]
[1754495906899,9.75140133,169.43,169.4,15.10621557]
[1754495907084,9.75140133,169.43,169.41,15.10621557]
[1754495907278,9.75140133,169.43,169.4,15.10621557]
[1754495907683,0.7,169.45,169.41,0.28432314]
[1754495907889,10.45140133,169.45,169.41,0.28432314]
[1754495908091,10.03,169.55,169.41,0.28432314]
[1754495908092,0.7,169.48,169.42,9.75140133]
[1754495908376,9.75140133,169.46,169.44,15.10621557]
[1754495908576,9.75140133,169.45,169.41,15.39053871]
[1754495908780,9.75140133,169.44,169.41,15.39053871]
[1754495909282,10.45140133,169.45,169.41,15.39053871]
[1754495909475,9.75140133,169.44,169.41,15.39053871]
[1754495909674,31.90046123,169.48,169.41,15.10621557]
[1754495909886,9.75140133,169.44,169.41,15.10621557]
[1754495910094,0.7,169.47,169.42,15.10621557]
[1754495910095,9.75140133,169.46,169.42,15.10621557]
[1754495910586,10.45140133,169.46,169.42,15.10621557]
[1754495910773,0.7,169.46,169.42,0.28432314]
[1754495910973,9.75140133,169.46,169.42,6.18671449]
[1754495911191,26.0,169.48,169.42,6.18671449]
[1754495911418,35.75140133,169.48,169.42,15.93811582]
[1754495911618,48.34,169.53,169.48,15.10621557]
[1754495911619,9.75140133,169.53,169.48,15.10621557]
[1754495911769,26.7,169.52,169.44,15.10621557]
[1754495911970,9.75140133,169.47,169.44,15.10621557]
[1754495912215,0.7,169.47,169.44,15.10621557]
[1754495912430,0.7,169.49,169.45,0.28432314]
[1754495912909,0.7,169.49,169.46,15.10621557]
[1754495913209,0.7,169.49,169.45,15.39053871]
[1754495913386,0.67,169.48,169.45,0.28432314]
[1754495913706,10.42140133,169.5,169.45,0.28432314]
[1754495913923,9.75140133,169.49,169.44,24.14194004]
[1754495914241,0.67,169.52,169.46,9.75140133]
[1754495914507,9.75140133,169.51,169.46,9.75140133]
[1754495914800,0.67,169.51,169.45,0.68]
[1754495915007,0.67,169.51,169.45,15.65283934]
[1754495915214,26.67,169.52,169.44,20.29227478]
[1754495915515,9.75140133,169.49,169.44,14.39053871]
[1754495915683,0.67,169.48,169.44,30.04370739]
[1754495915881,0.67,169.48,169.45,0.28432314]
[1754495916274,0.67,169.47,169.44,15.10621557]
[1754495916712,9.75140133,169.49,169.44,25.5376169]
[1754495916899,9.75140133,169.5,169.44,15.78621557]
[1754495917074,9.75140133,169.5,169.45,15.65273018]
[1754495917275,9.75140133,169.5,169.45,16.33273018]
[1754495917471,0.7,169.55,169.48,24.8576169]
[1754495917725,9.75140133,169.54,169.48,24.8576169]
[1754495917902,0.03,169.55,169.54,15.10621557]
[1754495918136,0.03,169.55,169.54,25.82194004]
[1754495918355,0.03,169.55,169.54,25.32194004]
[1754495918852,5.89369696,169.68,169.55,0.28432314]
[1754495919061,0.67,169.65,169.57,0.28432314]
[1754495919363,26.0,169.65,169.6,0.28432314]
[1754495919542,0.67,169.65,169.6,0.28432314]
[1754495919919,10.42140133,169.64,169.6,0.28432314]
[1754495920137,0.67,169.64,169.6,0.28432314]
[1754495920358,9.75140133,169.63,169.6,0.28432314]
[1754495920531,0.67,169.64,169.6,0.28432314]
[1754495921515,0.67,169.64,169.62,15.10621557]
[1754495921739,0.67,169.63,169.62,15.10621557]
[1754495921910,30.70906759,169.68,169.62,15.10621557]
[1754495922121,0.67,169.64,169.62,15.10621557]
[1754495922333,3.08275849,169.73,169.64,15.10621557]
[1754495922533,9.75140133,169.67,169.63,15.39053871]
[1754495922713,0.67,169.66,169.63,0.28432314]
[1754495922919,30.81899139,169.7,169.63,0.28432314]
[1754495923334,9.75140133,169.66,169.62,15.10621557]
[1754495923515,36.71191234,169.7,169.62,15.10621557]
[1754495923516,10.42140133,169.65,169.62,15.10621557]
[1754495923718,9.75140133,169.63,169.62,15.10621557]
[1754495923928,10.42140133,169.63,169.62,15.10621557]
[1754495924121,0.67,169.63,169.62,15.10621557]
[1754495924329,10.42140133,169.63,169.62,15.10621557]
[1754495924735,10.42140133,169.63,169.58,0.28432314]
[1754495924915,0.67,169.62,169.6,32.82466857]
[1754495925242,9.75140133,169.61,169.55,9.75140133]
[1754495925458,5.89414122,169.66,169.57,15.10621557]
[1754495925459,26.0,169.63,169.57,15.10621557]
[1754495925672,9.75140133,169.58,169.56,17.72264]
[1754495925842,35.75140133,169.59,169.57,2.11865647]
[1754495926041,36.42140133,169.59,169.58,2.11865647]
[1754495926632,36.42140133,169.59,169.51,15.10621557]
[1754495926839,20.62949427,169.66,169.53,15.10621557]
[1754495927068,9.75140133,169.58,169.54,2.12268453]
[1754495927275,0.67,169.58,169.55,2.12268453]
[1754495927475,10.42140133,169.57,169.56,2.12268453]
[1754495927854,0.67,169.57,169.56,2.12268453]
[1754495928341,0.7,169.6,169.56,2.12268453]
[1754495928538,10.45140133,169.6,169.57,17.2289001]
[1754495928762,10.45140133,169.6,169.59,15.10621557]
[1754495928962,10.45140133,169.6,169.59,2.12268453]
[1754495929562,10.45140133,169.6,169.56,15.10621557]
[1754495929761,0.7,169.6,169.57,3.98655391]
[1754495929953,0.7,169.6,169.58,15.10621557]
[1754495930274,0.67,169.59,169.57,15.10621557]
[1754495930672,0.67,169.58,169.57,15.10621557]
[1754495930878,0.67,169.58,169.57,19.10067372]
[1754495931453,10.42140133,169.58,169.52,15.10621557]
[1754495931678,0.67,169.57,169.54,15.10621557]
[1754495931986,5.92633221,169.6,169.55,15.10621557]
[1754495931987,10.42140133,169.56,169.55,15.10621557]
[1754495932349,0.67,169.56,169.55,15.10621557]
[1754495932667,10.42140133,169.56,169.55,15.10621557]
[1754495933348,10.42140133,169.56,169.53,15.10621557]
[1754495933753,9.75140133,169.55,169.51,15.10621557]
[1754495934053,10.42140133,169.54,169.51,15.10621557]
[1754495934253,9.75140133,169.53,169.49,15.10621557]
[1754495934452,9.75140133,169.53,169.48,9.75140133]
[1754495934453,9.75140133,169.53,169.51,15.10621557]
[1754495934671,9.75140133,169.54,169.51,15.10621557]
[1754495934869,9.78140133,169.6,169.53,15.10621557]
[1754495935076,9.75140133,169.57,169.53,15.10621557]
[1754495935253,0.67,169.57,169.53,15.10621557]
[1754495935454,0.67,169.59,169.55,9.75140133]
[1754495935685,57.14140133,169.6,169.54,9.751401]
[1754495935686,9.75140133,169.56,169.54,9.751401]
[1754495935864,26.0,169.57,169.49,15.10621557]
[1754495935865,9.75140133,169.55,169.49,15.10621557]
[1754495936173,10.42140133,169.56,169.51,15.10621557]
[1754495936684,10.42140133,169.55,169.5,15.10621557]
[1754495936879,73.3,169.57,169.5,15.10621557]
[1754495936880,9.75140133,169.53,169.5,30.89243057]
[1754495937087,10.42140133,169.53,169.48,15.10621557]
[1754495937283,0.67,169.53,169.5,15.10621557]
[1754495937470,9.75140133,169.54,169.5,15.10621557]
[1754495937794,10.42140133,169.54,169.5,15.10621557]
[1754495938077,10.42140133,169.53,169.5,15.10621557]
[1754495938492,9.75140133,169.51,169.49,17.731021]
[1754495938667,0.67,169.51,169.49,17.731021]
[1754495938853,10.42140133,169.5,169.44,15.10621557]
[1754495939055,9.75140133,169.49,169.44,42.5886379]
[1754495939355,9.75140133,169.49,169.44,43.2686379]
[1754495940157,9.75140133,169.49,169.44,42.5886379]
[1754495942381,9.75140133,169.57,169.53,15.10621557]
[1754495942573,9.75140133,169.57,169.52,10.431401]
[1754495942885,47.71,169.58,169.51,24.8576169]
[1754495942886,9.75140133,169.55,169.51,15.10621557]
[1754495943065,0.72,169.54,169.51,32.83409257]
[1754495943387,10.47140133,169.57,169.51,32.83409257]
[1754495943587,9.75140133,169.57,169.52,9.75140133]
[1754495943804,0.72,169.59,169.53,15.10621557]
[1754495944002,56.71140133,169.58,169.53,24.8576169]
[1754495944361,9.75140133,169.56,169.52,15.10621557]
[1754495944566,0.72,169.57,169.52,15.10621557]
[1754495944567,9.75140133,169.57,169.52,15.10621557]
[1754495944876,10.47140133,169.57,169.51,9.75140133]
[1754495945063,0.72,169.57,169.52,24.8576169]
[1754495945403,56.65140133,169.58,169.52,24.8576169]
[1754495945604,9.75140133,169.58,169.52,25.5576169]
[1754495945781,5.35084999,169.59,169.53,9.75140133]
[1754495946104,9.75140133,169.58,169.53,9.75140133]
[1754495946610,9.75140133,169.58,169.52,15.10621557]
[1754495946611,9.75140133,169.56,169.52,15.10621557]
[1754495946775,9.75140133,169.56,169.49,0.28432314]
[1754495946776,9.75140133,169.54,169.49,9.75140133]
[1754495947105,0.72,169.57,169.5,9.75140133]
[1754495947400,9.75140133,169.56,169.52,15.10621557]
[1754495947601,0.72,169.55,169.52,15.10621557]
[1754495948575,9.75140133,169.55,169.52,15.10621557]
[1754495948791,0.72,169.55,169.52,15.10621557]
[1754495948995,57.36140133,169.58,169.52,9.75140133]
[1754495949183,9.75140133,169.55,169.51,15.10621557]
[1754495949371,46.89,169.58,169.48,24.8576169]
[1754495949372,10.47140133,169.54,169.48,24.8576169]
[1754495949572,9.75140133,169.55,169.5,15.10621557]
[1754495949783,56.47140133,169.55,169.5,0.7]
[1754495950078,46.72,169.55,169.51,15.10621557]
[1754495950296,57.19140133,169.55,169.51,15.10621557]
[1754495950478,9.75140133,169.54,169.51,15.10621557]
[1754495951004,9.75140133,169.53,169.48,24.8576169]
[1754495951184,9.75140133,169.53,169.48,25.5576169]
[1754495951379,9.75140133,169.52,169.48,15.10621557]
[1754495951581,9.75140133,169.53,169.48,25.5576169]
[1754495951886,9.75140133,169.53,169.5,15.10621557]
[1754495952880,0.03,169.55,169.51,0.7]
[1754495953190,0.03,169.55,169.53,15.10621557]
[1754495953691,9.75140133,169.54,169.5,15.39053871]
[1754495953882,9.75140133,169.54,169.5,16.09053871]
[1754495954395,9.75140133,169.51,169.49,15.10621557]
[1754495954696,46.52,169.54,169.48,15.10621557]
[1754495954893,9.75140133,169.49,169.48,15.10621557]
[1754495955072,9.75140133,169.49,169.45,32.83618857]
[1754495955279,9.75140133,169.48,169.44,15.16621557]
[1754495955589,9.75140133,169.47,169.44,15.16621557]
[1754495955794,9.75140133,169.47,169.44,5.96179301]
[1754495955983,0.72,169.49,169.44,0.06]
[1754495955984,9.75140133,169.48,169.44,0.06]
[1754495956180,9.75140133,169.47,169.44,0.06]
[1754495956769,9.75140133,169.48,169.44,5.96176372]
[1754495957375,0.72,169.49,169.44,5.96176372]
[1754495957576,9.75140133,169.48,169.44,5.96176372]
[1754495957776,0.72,169.49,169.44,23.69697772]
[1754495957978,9.75140133,169.48,169.45,15.10621557]
[1754495958205,9.75140133,169.47,169.45,15.10621557]
[1754495958919,9.75140133,169.47,169.44,0.06]
[1754495959204,9.75140133,169.47,169.44,15.16621557]
[1754495959500,9.75140133,169.47,169.44,24.91761657]
[1754495961004,26.0,169.5,169.44,0.06]
[1754495961205,9.75140133,169.45,169.44,0.06]
[1754495961609,10.47140133,169.45,169.44,0.06]
[1754495962078,14.42894057,169.45,169.44,0.06]
[1754495962405,10.47140133,169.45,169.44,0.06]
[1754495963180,26.72,169.45,169.44,0.06]
[1754495963382,36.47140133,169.45,169.44,0.06]
[1754495963782,88.63284718,169.45,169.44,0.06]
[1754495964079,102.33846874,169.45,169.42,0.06]
[1754495964312,26.0,169.41,169.4,0.06]
[1754495964510,35.75140133,169.41,169.4,0.06]
[1754495964719,36.47140133,169.41,169.4,0.06]
[1754495965006,81.95140133,169.41,169.4,0.06]
[1754495965411,35.75140133,169.41,169.4,0.06]
[1754495965925,36.47140133,169.41,169.4,0.06]
[1754495966582,82.63140133,169.41,169.4,0.06]
[1754495967416,88.53424059,169.41,169.4,0.06]
[1754495967883,93.29949249,169.41,169.4,0.06]
[1754495968082,82.63140133,169.41,169.4,0.06]
[1754495968291,81.91140133,169.41,169.4,0.06]
[1754495968478,82.63140133,169.41,169.4,0.06]
[1754495968679,82.59140133,169.41,169.4,0.06]
[1754495969104,88.49424059,169.41,169.4,0.06]
[1754495970293,72.84,169.41,169.4,0.06]
[1754495970586,9.75140133,169.41,169.4,0.06]
[1754495970787,55.81140133,169.41,169.4,0.06]
[1754495971612,56.53140133,169.41,169.4,0.06]
[1754495972299,10.47140133,169.41,169.4,0.06]
[1754495972616,62.37424059,169.41,169.4,0.06]
[1754495972986,45.98,169.42,169.4,0.06]
[1754495973193,9.75140133,169.41,169.4,0.06]
[1754495973614,45.98,169.42,169.4,0.06]
[1754495973817,9.75140133,169.41,169.4,0.06]
[1754495974118,10.44140133,169.41,169.4,0.06]
[1754495974518,9.75140133,169.41,169.4,0.06]
[1754495976027,55.71140133,169.42,169.4,0.06]
[1754495976311,9.75140133,169.41,169.4,0.06]
[1754495977218,55.71140133,169.42,169.4,0.06]
[1754495977406,45.96,169.42,169.4,0.06]
[1754495977608,9.75140133,169.42,169.4,0.06]
[1754495977803,55.65140133,169.42,169.4,0.06]
[1754495978119,9.75140133,169.41,169.4,0.06]
[1754495979933,10.44140133,169.41,169.4,0.06]
[1754495980098,9.75140133,169.41,169.4,0.06]
[1754495980943,45.82,169.42,169.4,0.06]
[1754495981098,9.75140133,169.41,169.4,0.06]
[1754495982807,10.44140133,169.41,169.4,0.06]
[1754495983218,56.16140133,169.41,169.4,0.06]
[1754495983421,62.06424059,169.41,169.4,0.06]
[1754495983927,56.16140133,169.41,169.4,0.06]
[1754495984529,55.45140133,169.41,169.4,0.06]
[1754495984730,56.14140133,169.41,169.4,0.06]
[1754495985116,55.45140133,169.41,169.4,0.06]
[1754495985301,56.14140133,169.41,169.4,0.06]
[1754495986040,62.04424059,169.41,169.4,0.06]
[1754495987333,65.98965522,169.41,169.4,0.06]
[1754495987840,26.0,169.39,169.38,0.06]
[1754495988050,91.20035217,169.39,169.38,0.06]
[1754495988220,91.89035217,169.39,169.38,0.06]
[1754495989929,59.25681596,169.39,169.38,0.06]
[1754495990636,65.16035217,169.39,169.38,0.06]
[1754495990843,13.69681596,169.39,169.38,0.06]
[1754495991024,55.25140133,169.39,169.38,0.06]
[1754495991344,49.44714582,169.39,169.38,0.06]
[1754495991655,65.10208336,169.39,169.38,0.06]
[1754495992157,55.25140133,169.39,169.38,0.06]
[1754495992315,59.20088103,169.39,169.38,0.06]
[1754495994534,59.06088103,169.39,169.38,0.06]
[1754495995935,49.9994797,169.39,169.38,0.06]
[1754495996140,65.65441724,169.39,169.38,0.06]
[1754495996886,62.01557156,169.39,169.38,0.06]
[1754495997268,49.3094797,169.39,169.38,0.06]
[1754495997565,62.01557156,169.39,169.38,0.06]
[1754495997937,62.01557156,169.39,169.36,0.06]
[1754495997938,26.0,169.37,169.36,0.06]
[1754495998141,26.0,169.37,169.32,0.2]
[1754495998142,81.38203535,169.37,169.32,0.2]
[1754495998462,6.11255565,169.33,169.32,0.2]
[1754495998668,45.3,169.33,169.32,0.2]
[1754495998853,59.0346213,169.33,169.32,0.2]
[1754495999460,65.63024936,169.33,169.32,0.2]
[1754496000035,59.7246213,169.33,169.32,0.2]
[1754496000474,45.99,169.33,169.32,0.2]
[1754496000689,59.04673604,169.33,169.32,0.2]
[1754496001095,63.0097889,169.33,169.32,0.2]
[1754496001452,17.7097889,169.33,169.32,0.2]
[1754496001677,7.9246473,169.33,169.32,0.2]
[1754496001850,17.7097889,169.33,169.32,0.2]
[1754496002176,3.96159444,169.33,169.32,0.87]
[1754496002472,3.24159444,169.33,169.32,0.87]
[1754496002680,0.03,169.44,169.32,0.87]
[1754496002853,0.03,169.44,169.32,0.2]
[1754496003048,0.03,169.44,169.35,26.0]
[1754496003471,0.03,169.44,169.41,9.7851416]
[1754496003975,9.8151416,169.42,169.41,15.10621557]
[1754496004387,9.8151416,169.42,169.32,66.13091896]
[1754496004388,10.5051416,169.42,169.32,15.89111844]
[1754496004569,9.7851416,169.34,169.32,0.2]
[1754496004874,9.7851416,169.33,169.32,0.2]
[1754496005169,10.4751416,169.33,169.32,0.2]
[1754496005564,9.7851416,169.33,169.32,0.2]
[1754496006270,10.4751416,169.33,169.32,0.2]
[1754496006592,9.7851416,169.27,169.21,0.2]
[1754496006772,9.7851416,169.26,169.22,16.118332]
[1754496006970,9.7851416,169.27,169.23,15.30621557]
[1754496007788,35.7851416,169.28,169.24,0.2]
[1754496008292,9.7851416,169.29,169.25,0.2]
[1754496008468,9.7851416,169.31,169.26,15.59053871]
[1754496008652,10.0,169.41,169.26,15.10621557]
[1754496008853,9.7851416,169.31,169.26,9.7851416]
[1754496009049,9.7851416,169.3,169.26,15.10621557]
[1754496009463,9.7851416,169.31,169.25,0.28432314]
[1754496009782,26.0,169.35,169.29,0.28432314]
[1754496009955,9.7851416,169.34,169.3,15.10621557]
[1754496010158,45.91,169.36,169.3,24.89135717]
[1754496010159,45.22,169.36,169.3,24.89135717]
[1754496010384,55.0051416,169.36,169.31,9.9851416]
[1754496010589,55.0051416,169.36,169.32,0.2]
[1754496010754,9.7851416,169.36,169.32,0.2]
[1754496010954,0.03,169.42,169.36,15.10621557]
[1754496011271,9.7851416,169.4,169.36,15.10621557]
[1754496011473,0.03,169.42,169.36,15.10621557]
[1754496011663,9.7851416,169.4,169.36,15.10621557]
[1754496011901,0.03,169.42,169.36,15.10621557]
[1754496012075,9.7851416,169.41,169.37,15.10621557]
[1754496013295,0.03,169.42,169.39,15.10621557]
[1754496014201,0.03,169.42,169.38,25.09135717]
[1754496014360,9.8151416,169.42,169.38,0.2]
[1754496014554,9.7851416,169.4,169.36,15.10621557]
[1754496014856,9.8151416,169.42,169.38,15.10621557]
[1754496015163,0.03,169.42,169.4,15.10621557]
[1754496015365,0.03,169.42,169.41,15.10621557]
[1754496015680,0.03,169.42,169.41,25.17568031]
[1754496015893,0.03,169.42,169.41,25.37568031]
[1754496016080,0.03,169.42,169.41,15.10621557]
[1754496017565,10.5051416,169.42,169.35,15.10621557]
[1754496017768,159.5851416,169.41,169.35,24.89135717]
[1754496018081,149.8,169.41,169.38,15.10621557]
[1754496018287,159.5851416,169.41,169.38,15.10621557]
[1754496018473,150.49,169.41,169.37,15.10621557]
[1754496018785,9.7851416,169.4,169.37,15.10621557]
[1754496018979,9.7851416,169.4,169.36,15.39053871]
[1754496019181,150.49,169.41,169.36,25.17568031]
[1754496019182,160.2751416,169.41,169.36,25.17568031]
[1754496020079,150.49,169.41,169.36,25.17568031]
[1754496020272,160.2751416,169.41,169.36,15.39053871]
[1754496020480,160.2751416,169.41,169.35,9.7851416]
[1754496020481,9.7851416,169.38,169.35,15.10621557]
[1754496020780,0.69,169.38,169.33,15.10621557]
[1754496020959,9.7851416,169.39,169.35,15.10621557]
[1754496021167,14.46869098,169.42,169.38,15.10621557]
[1754496021890,4.68354938,169.42,169.38,15.10621557]
[1754496022276,0.03,169.42,169.39,9.7851416]
[1754496022470,0.03,169.42,169.4,15.10621557]
[1754496022673,10.4751416,169.41,169.38,15.10621557]
[1754496022862,10.4751416,169.4,169.38,15.10621557]
[1754496023060,10.4751416,169.39,169.36,15.10621557]
[1754496023274,9.8962693,169.42,169.35,15.10621557]
[1754496023275,9.7851416,169.37,169.35,15.10621557]
[1754496023473,10.4751416,169.36,169.32,0.06]
[1754496023667,9.7851416,169.34,169.32,0.06]
[1754496023874,0.69,169.35,169.33,15.10621557]
[1754496024081,10.4751416,169.35,169.33,15.10621557]
[1754496024283,9.7851416,169.36,169.33,15.10621557]
[1754496024490,3.96490483,169.37,169.33,15.10621557]
[1754496024786,3.96490483,169.37,169.34,9.7851416]
[1754496024980,9.7851416,169.39,169.35,15.10621557]
[1754496025561,4.65490483,169.41,169.35,15.10621557]
[1754496025763,9.7851416,169.39,169.35,15.10621557]
[1754496026762,10.4751416,169.39,169.35,15.10621557]
[1754496027169,9.7851416,169.36,169.34,15.10621557]
[1754496027395,10.4751416,169.35,169.32,9.845141]
[1754496027579,9.7851416,169.33,169.32,0.06]
[1754496027965,3.96447037,169.35,169.32,15.16621557]
[1754496028271,9.7851416,169.35,169.32,0.06]
[1754496028889,9.7851416,169.36,169.32,15.16621557]
[1754496029188,10.4751416,169.36,169.32,0.06]
[1754496029686,3.96577052,169.38,169.33,24.89135717]
[1754496029883,3.96577052,169.39,169.35,9.7851416]
[1754496030085,10.4751416,169.38,169.34,15.39053871]
[1754496030273,9.7851416,169.36,169.32,15.16621557]
[1754496030589,10.4751416,169.36,169.32,15.16621557]
[1754496030894,9.7851416,169.36,169.32,15.16621557]
[1754496031691,0.69,169.38,169.33,34.67649817]
[1754496032567,10.4751416,169.38,169.33,34.67649817]
[1754496033378,0.67,169.37,169.33,24.89135657]
[1754496033576,9.7851416,169.34,169.32,15.16621557]
[1754496033776,10.4551416,169.33,169.32,15.16621557]
[1754496034085,9.7851416,169.35,169.32,15.16621557]
[1754496034292,10.4551416,169.35,169.32,15.16621557]
[1754496034593,9.7851416,169.33,169.32,15.16621557]
[1754496034798,10.4551416,169.34,169.32,15.16621557]
[1754496034969,10.4551416,169.34,169.32,0.06]
[1754496035482,9.7851416,169.34,169.32,0.06]
[1754496035680,0.67,169.33,169.32,0.06]
[1754496035891,10.4551416,169.33,169.32,0.06]
[1754496036690,14.42091212,169.33,169.32,0.06]
[1754496037297,10.4551416,169.33,169.32,0.06]
[1754496037503,14.42091212,169.33,169.32,0.06]
[1754496037676,46.32654018,169.33,169.3,0.06]
[1754496037873,9.7851416,169.31,169.3,0.06]
[1754496038401,0.67,169.31,169.3,0.06]
[1754496038699,9.7851416,169.31,169.3,0.06]
[1754496038865,3.96694149,169.32,169.3,0.06]
[1754496039071,10.4551416,169.33,169.3,0.06]
[1754496039887,9.7851416,169.33,169.3,0.06]
[1754496040078,0.67,169.33,169.3,0.06]
[1754496040399,9.7851416,169.34,169.3,0.06]
[1754496040574,14.41944064,169.35,169.3,9.8451416]
[1754496040774,0.67,169.38,169.34,9.7851416]
[1754496041080,0.67,169.37,169.35,15.10621557]
[1754496041278,9.7851416,169.38,169.34,15.10621557]
[1754496041503,0.67,169.36,169.34,15.10621557]
[1754496041809,10.4551416,169.35,169.3,0.34432314]
[1754496042104,9.7851416,169.37,169.32,9.7851416]
[1754496042282,10.4551416,169.37,169.32,9.7851416]
[1754496042473,0.67,169.37,169.34,9.7851416]
[1754496042671,14.41875169,169.39,169.34,9.7851416]
[1754496042988,0.67,169.38,169.36,15.10621557]
[1754496043419,0.67,169.37,169.36,15.10621557]
[1754496043784,0.67,169.37,169.33,9.7851416]
[1754496044197,13.74875169,169.39,169.35,15.10621557]
[1754496044408,14.41875169,169.39,169.35,15.10621557]
[1754496044807,10.4551416,169.38,169.33,24.89135717]
[1754496045017,10.4551416,169.37,169.33,15.10621557]
[1754496045186,0.67,169.36,169.33,15.10621557]
[1754496045386,10.4551416,169.36,169.31,9.7851416]
[1754496045674,0.67,169.35,169.31,9.7851416]
[1754496045880,10.4551416,169.37,169.31,9.7851416]
[1754496046120,0.67,169.37,169.32,15.10621557]
[1754496046280,9.7851416,169.38,169.33,9.7851416]
[1754496046608,10.4551416,169.38,169.33,9.7851416]
[1754496047111,14.41970745,169.38,169.33,9.7851416]
[1754496047290,0.67,169.38,169.35,15.10621557]
[1754496047488,9.7851416,169.39,169.35,15.10621557]
[1754496047489,3.96508434,169.39,169.35,24.89135717]
[1754496047690,3.96508434,169.39,169.35,15.10621557]
[1754496047891,9.7851416,169.4,169.35,15.10621557]
[1754496048093,0.67,169.39,169.35,15.10621557]
[1754496050021,3.99508434,169.42,169.35,30.79627011]
[1754496050187,9.7851416,169.39,169.35,21.01112851]
[1754496050381,9.7851416,169.39,169.35,15.10621557]
[1754496050604,10.4551416,169.38,169.34,21.01142567]
[1754496050909,0.67,169.38,169.34,21.01142567]
[1754496052214,9.89765414,169.42,169.34,15.10621557]
[1754496052418,3.99508434,169.42,169.37,24.89135717]